bitfinex/quotes_ETHUSD_20250930
["timestamp","ask_amount","ask_price","bid_price","bid_amount"]
[1759264521589,2.52034737,4167.8,4167.7,8.83497573]
[1759264521590,0.001,4167.8,4167.7,8.83497573]
[1759264521764,0.001,4167.8,4167.7,11.26372978]
[1759264522165,0.001,4167.8,4167.7,3.82507573]
[1759264522373,2.63264737,4167.8,4167.7,2.91307573]
[1759264522590,2.75264737,4167.8,4167.7,8.14307573]
[1759264522891,2.52034737,4167.8,4167.7,8.14307573]
[1759264523258,3.18784737,4167.8,4167.7,2.4]
[1759264523580,3.18784737,4167.8,4167.7,5.135]
[1759264525794,2.52034737,4167.8,4167.7,5.135]
[1759264526189,2.52034737,4167.8,4167.7,5.8269]
[1759264526594,2.52034737,4167.8,4167.7,5.3781]
[1759264526889,2.52034737,4167.8,4167.7,5.135]
[1759264527191,0.121,4167.8,4167.7,5.135]
[1759264527604,2.52034737,4167.8,4167.7,5.135]
[1759264528521,0.121,4167.8,4167.7,5.135]
[1759264528680,0.121,4167.8,4167.7,5.8269]
[1759264529005,0.121,4167.8,4167.7,5.135]
[1759264529006,2.52034737,4167.8,4167.7,5.135]
[1759264529395,3.18784737,4167.8,4167.7,2.4]
[1759264529574,2.75264737,4167.8,4167.7,7.629]
[1759264531273,3.18784737,4167.8,4167.7,7.629]
[1759264531487,2.75264737,4167.8,4167.7,7.629]
[1759264532977,3.18784737,4167.8,4167.7,5.229]
[1759264533876,2.39957767,4167.4,4167.3,0.002]
[1759264534077,2.39957767,4167.4,4167.3,0.5158407]
[1759264534400,2.39957767,4167.4,4167.3,5.7448407]
[1759264534854,2.39957767,4167.4,4167.3,0.5158407]
[1759264535149,2.39957767,4167.4,4167.3,5.7448407]
[1759264535858,2.39957767,4167.4,4167.3,0.5158407]
[1759264536340,2.39957767,4167.4,4167.3,5.7448407]
[1759264536341,2.63187767,4167.4,4167.3,5.7448407]
[1759264536537,2.39957767,4167.4,4167.3,5.7448407]
[1759264538566,3.06707767,4167.4,4167.3,5.7448407]
[1759264538766,3.06707767,4167.4,4167.3,0.5158407]
[1759264539141,3.06707767,4167.4,4167.3,0.002]
[1759264539337,3.06707767,4167.4,4167.3,2.736]
[1759264539555,3.06707767,4167.4,4167.3,0.002]
[1759264539750,3.06707767,4167.4,4167.3,2.736]
[1759264542567,3.06707767,4167.4,4167.3,0.002]
[1759264542874,3.06707767,4167.4,4167.3,2.736]
[1759264546558,3.78774731,4167.4,4167.3,2.736]
[1759264548785,3.78774731,4167.4,4167.3,0.002]
[1759264548968,3.78774731,4167.4,4167.3,2.736]
[1759264549167,3.78774731,4167.4,4167.3,0.002]
[1759264549369,3.78774731,4167.4,4167.3,2.736]
[1759264551089,3.78774731,4167.4,4167.3,0.002]
[1759264551288,3.78774731,4167.4,4167.3,2.736]
[1759264552777,3.78874731,4167.4,4167.3,0.002]
[1759264552957,3.82444731,4167.4,4167.3,2.736]
[1759264557333,3.82444731,4167.4,4167.3,0.002]
[1759264557510,3.82444731,4167.4,4167.3,2.736]
[1759264560172,3.12124731,4167.4,4167.3,2.736]
[1759264562015,3.82444731,4167.4,4167.3,2.736]
[1759264562212,3.12124731,4167.4,4167.3,2.736]
[1759264564097,3.12124731,4167.4,4167.3,2.9642]
[1759264565628,3.12124731,4167.4,4167.3,3.4]
[1759264565801,2.40057767,4167.4,4167.3,3.4]
[1759264565990,0.001,4167.4,4167.3,3.4]
[1759264566196,2.40057767,4167.4,4167.3,4.25534084]
[1759264566615,0.001,4167.4,4167.3,3.91514084]
[1759264568698,0.001,4167.4,4167.3,3.93913719]
[1759264570422,0.001,4167.4,4167.3,3.91514084]
[1759264577029,2.40057767,4167.4,4167.3,3.01214084]
[1759264577216,2.52057767,4167.4,4167.3,5.74514084]
[1759264577551,2.52057767,4167.4,4167.3,6.44534084]
[1759264578551,0.121,4167.4,4167.3,6.44534084]
[1759264578711,0.001,4167.4,4167.3,7.09007492]
[1759264580041,2.40057767,4167.4,4167.3,7.09007492]
[1759264580540,2.40057767,4167.4,4167.3,6.61947492]
[1759264580834,2.40057767,4167.4,4167.3,7.04987492]
[1759264581236,2.40057767,4167.4,4167.3,5.74514084]
[1759264581856,2.40057767,4167.4,4167.3,0.51714084]
[1759264582037,2.40057767,4167.4,4167.3,5.74514084]
[1759264583753,3.07157767,4167.4,4167.3,5.23]
[1759264584064,3.07157767,4167.4,4167.3,2.735]
[1759264584620,3.07157767,4167.4,4167.3,0.002]
[1759264584862,3.07157767,4167.4,4167.3,1.728]
[1759264585148,3.07157767,4167.4,4167.3,2.735]
[1759264585348,2.39969283,4167.2,4167.1,0.002]
[1759264585644,2.51969283,4167.2,4167.1,0.002]
[1759264585844,3.19069283,4167.2,4167.1,0.002]
[1759264586424,3.19069283,4167.2,4167.1,2.735]
[1759264586842,3.19069283,4167.2,4167.1,0.002]
[1759264587021,3.19069283,4167.2,4167.1,2.735]
[1759264587221,3.19069283,4167.2,4167.1,0.002]
[1759264587445,2.39980801,4167.0,4166.9,0.002]
[1759264587948,3.07080801,4167.0,4166.9,0.002]
[1759264588248,3.07080801,4167.0,4166.8,1e-08]
[1759264588249,2.3998656,4166.9,4166.8,1e-08]
[1759264588545,2.5198656,4166.9,4166.8,2.73300001]
[1759264588752,3.1908656,4166.9,4166.8,2.73300001]
[1759264594347,3.24058545,4166.9,4166.8,3.39050001]
[1759264595062,3.24058545,4166.9,4166.8,2.96010001]
[1759264595379,3.91158545,4166.9,4166.8,2.73300001]
[1759264595548,3.46908545,4166.9,4166.8,2.73300001]
[1759264597874,3.24058545,4166.9,4166.8,2.73300001]
[1759264598577,3.46908545,4166.9,4166.8,2.73300001]
[1759264599760,3.91158545,4166.9,4166.8,2.73300001]
[1759264600445,3.46908545,4166.9,4166.8,2.73300001]
[1759264600649,3.24058545,4166.9,4166.8,2.73300001]
[1759264601076,3.48878545,4166.9,4166.8,2.73300001]
[1759264601286,3.94188545,4166.9,4166.8,2.73300001]
[1759264603563,3.48878545,4166.9,4166.8,1e-08]
[1759264603762,3.94188545,4166.9,4166.8,2.73300001]
[1759264603959,3.24058545,4166.9,4166.8,2.73300001]
[1759264607772,3.24158545,4166.9,4166.8,2.73300001]
[1759264608500,2.5208656,4166.9,4166.8,3.40550001]
[1759264610980,2.5208656,4166.9,4166.8,2.97000001]
[1759264611561,2.5208656,4166.9,4166.8,2.73200001]
[1759264611562,2.7690656,4166.9,4166.8,2.73200001]
[1759264611782,2.5208656,4166.9,4166.8,1e-08]
[1759264611983,3.2221656,4166.9,4166.8,2.73200001]
[1759264612989,3.94285082,4166.9,4166.8,2.73200001]
[1759264614695,3.94285082,4166.9,4166.8,1e-08]
[1759264614862,3.94285082,4166.9,4166.8,2.73200001]
[1759264616902,3.94285082,4166.9,4166.8,1e-08]
[1759264617069,3.94285082,4166.9,4166.8,2.73200001]
[1759264619417,2.3999808,4166.7,4166.6,0.002]
[1759264619573,2.3999808,4166.7,4166.6,2.734]
[1759264619774,2.6481808,4166.7,4166.6,2.734]
[1759264619970,3.3688816,4166.7,4166.6,2.734]
[1759264621287,3.3688816,4166.7,4166.6,0.002]
[1759264621513,3.3688816,4166.7,4166.6,2.734]
[1759264621719,3.1206816,4166.7,4166.6,2.734]
[1759264623828,0.001,4166.9,4166.6,3.43050038]
[1759264624037,2.40060184,4167.4,4166.8,0.792]
[1759264624038,0.001,4167.4,4166.8,0.792]
[1759264624320,0.001,4167.4,4167.1,0.64427962]
[1759264624502,0.001,4167.4,4167.2,3.89200523]
[1759264624711,0.001,4167.4,4167.3,0.90492613]
[1759264625030,0.001,4167.4,4167.3,1.57742613]
[1759264632232,0.001,4167.4,4167.3,6.80442613]
[1759264632404,2.40057767,4167.4,4167.3,0.90492613]
[1759264632596,0.001,4167.4,4167.3,5.227]
[1759264632797,0.001,4167.4,4167.3,5.4718]
[1759264632999,0.001,4167.4,4167.3,5.9087]
[1759264633194,0.001,4167.4,4167.3,0.6817]
[1759264633529,0.001,4167.4,4167.3,5.9077]
[1759264633730,0.001,4167.4,4167.3,6.49847]
[1759264644242,0.001,4167.4,4167.3,7.01157333]
[1759264646949,0.001,4167.4,4167.3,6.57467333]
[1759264648471,0.001,4167.4,4167.3,8.97430858]
[1759264648672,0.001,4167.8,4167.3,8.97430858]
[1759264648673,0.001,4167.8,4167.4,3.192]
[1759264648872,0.001,4167.8,4167.6,3.04204027]
[1759264649075,0.001,4167.8,4167.7,5.73910333]
[1759264649372,0.001,4167.8,4167.7,8.13910333]
[1759264649736,0.001,4167.8,4167.7,0.51310333]
[1759264649936,0.2361,4167.8,4167.7,5.73910333]
[1759264650141,2.63544737,4167.8,4167.7,5.226]
[1759264650338,3.08424737,4167.8,4167.7,5.226]
[1759264652270,3.08424737,4167.8,4167.7,5.74082177]
[1759264654450,2.63544737,4167.8,4167.7,5.74082177]
[1759264656688,2.40034737,4167.8,4167.7,5.74082177]
[1759264657667,0.001,4167.8,4167.7,0.51482177]
[1759264657850,0.001,4167.8,4167.7,5.74082177]
[1759264658177,2.40034737,4167.8,4167.7,5.74082177]
[1759264658577,2.52034737,4167.8,4167.7,5.74082177]
[1759264659150,2.75544737,4167.8,4167.7,5.74082177]
[1759264659350,3.20424737,4167.8,4167.7,5.74082177]
[1759264660147,3.20424737,4167.8,4167.7,0.51482177]
[1759264660378,3.20424737,4167.8,4167.7,5.74082177]
[1759264660846,2.75544737,4167.8,4167.7,5.74082177]
[1759264664152,3.18464737,4167.8,4167.7,5.74082177]
[1759264664755,2.52034737,4167.8,4167.7,5.74082177]
[1759264665584,2.74804737,4167.8,4167.7,5.74082177]
[1759264667692,2.74804737,4167.8,4167.1,0.12]
[1759264667693,2.39969283,4167.2,4167.1,0.64204027]
[1759264667887,2.3998656,4166.9,4166.8,0.64404027]
[1759264668192,2.7475656,4166.9,4166.8,3.24932883]
[1759264670100,2.5198656,4166.9,4166.8,3.24932883]
[1759264670303,2.7475656,4166.9,4166.8,2.733]
[1759264670811,0.12,4166.9,4166.8,2.733]
[1759264671006,2.5198656,4166.9,4166.8,4.46892521]
[1759264671309,2.5198656,4166.9,4166.8,3.94572521]
[1759264671800,2.5198656,4166.9,4166.8,3.24852521]
[1759264672189,2.5198656,4166.9,4166.8,2.733]
[1759264673385,2.5198656,4166.9,4166.8,0.002]
[1759264673585,2.5198656,4166.9,4166.8,5.228]
[1759264674176,3.1767656,4166.9,4166.8,0.002]
[1759264674415,3.1767656,4166.9,4166.8,2.733]
[1759264674776,3.27284934,4166.9,4166.8,2.733]
[1759264678605,3.1767656,4166.9,4166.8,0.002]
[1759264678909,3.1767656,4166.9,4166.8,2.733]
[1759264681121,2.5198656,4166.9,4166.8,2.733]
[1759264681701,3.1767656,4166.9,4166.8,2.733]
[1759264684918,3.1767656,4166.9,4166.8,3.4302]
[1759264684919,2.5198656,4166.9,4166.8,3.4302]
[1759264685660,2.39975993,4167.1,4166.8,3.4302]
[1759264685822,2.39980801,4167.0,4166.9,5.226]
[1759264686021,2.4008656,4166.9,4166.8,0.234]
[1759264686240,2.4008656,4166.9,4166.8,2.498]
[1759264686548,2.4008656,4166.9,4166.8,3.1952]
[1759264686916,0.001,4166.9,4166.8,3.1952]
[1759264687123,0.001,4166.9,4166.8,4.03075782]
[1759264687343,0.001,4166.9,4166.8,6.76175782]
[1759264687651,0.001,4166.9,4166.8,6.29655782]
[1759264687842,2.4008656,4166.9,4166.8,5.97663782]
[1759264688148,2.4008656,4166.9,4166.8,6.44183782]
[1759264690214,0.001,4166.9,4166.8,6.44183782]
[1759264690422,2.4008656,4166.9,4166.8,6.44183782]
[1759264692146,0.001,4166.9,4166.8,6.44183782]
[1759264694450,2.4008656,4166.9,4166.8,6.44183782]
[1759264694828,2.4008656,4166.9,4166.8,5.74463782]
[1759264696379,0.001,4166.9,4166.8,6.43473782]
[1759264696518,2.4008656,4166.9,4166.8,6.43473782]
[1759264696855,2.4008656,4166.9,4166.8,0.76593782]
[1759264697025,2.4008656,4166.9,4166.8,5.74363782]
[1759264699265,2.4008656,4166.9,4166.8,0.51763782]
[1759264699471,2.6488656,4166.9,4166.8,5.74363782]
[1759264699686,2.6488656,4166.9,4166.8,0.51763782]
[1759264699846,3.0912656,4166.9,4166.8,0.51763782]
[1759264700199,3.0912656,4166.9,4166.8,3.24863782]
[1759264700553,3.0912656,4166.9,4166.8,2.733]
[1759264700898,3.0912656,4166.9,4166.8,0.002]
[1759264701055,3.0912656,4166.9,4166.8,2.733]
[1759264701415,2.4000384,4166.6,4166.5,1e-08]
[1759264701682,2.4000384,4166.6,4166.2,1e-08]
[1759264701683,2.40021121,4166.3,4166.2,1e-08]
[1759264701864,7.99165618,4166.3,4166.2,1e-08]
[1759264702187,8.68205618,4166.3,4166.2,1e-08]
[1759264702353,8.68205618,4166.3,4165.9,0.002]
[1759264702354,2.40032644,4166.1,4165.9,0.002]
[1759264702780,3.09072644,4166.1,4165.9,0.002]
[1759264702983,3.09072644,4166.1,4166.0,2.733]
[1759264707502,2.64832644,4166.1,4166.0,2.733]
[1759264707659,3.09072644,4166.1,4166.0,2.733]
[1759264708788,2.64832644,4166.1,4166.0,2.733]
[1759264708987,2.52032644,4166.1,4166.0,2.733]
[1759264709158,2.52032644,4166.1,4166.0,2.9675]
[1759264709359,2.52032644,4166.1,4166.0,3.4257]
[1759264710087,0.12,4166.1,4166.0,3.4257]
[1759264710276,2.52032644,4166.1,4166.0,3.4257]
[1759264710665,0.12,4166.1,4166.0,3.4257]
[1759264711196,2.52032644,4166.1,4166.0,3.4257]
[1759264714191,2.52032644,4166.1,4166.0,0.002]
[1759264714396,3.21072644,4166.1,4166.0,2.733]
[1759264714777,2.76832644,4166.1,4166.0,2.733]
[1759264715468,2.52032644,4166.1,4166.0,2.733]
[1759264716263,2.76832644,4166.1,4166.0,2.733]
[1759264716465,2.52032644,4166.1,4166.0,0.002]
[1759264716788,2.52032644,4166.1,4166.0,2.733]
[1759264717361,2.52032644,4166.1,4166.0,0.002]
[1759264717362,3.21072644,4166.1,4166.0,0.002]
[1759264717691,3.21072644,4166.1,4166.0,2.733]
[1759264720003,3.21072644,4166.1,4166.0,0.002]
[1759264720312,3.21072644,4166.1,4166.0,2.733]
[1759264724190,3.21072644,4166.1,4166.0,0.002]
[1759264724383,3.21072644,4166.1,4166.0,2.733]
[1759264724697,3.21072644,4166.1,4166.0,0.002]
[1759264724901,3.21072644,4166.1,4166.0,2.733]
[1759264725203,3.21072644,4166.1,4166.0,0.002]
[1759264725403,3.21072644,4166.1,4166.0,1.099]
[1759264725705,3.21072644,4166.1,4166.0,2.733]
[1759264726608,3.21072644,4166.1,4166.0,0.002]
[1759264726801,2.40038406,4166.0,4165.9,0.002]
[1759264726999,2.85638406,4166.0,4165.9,0.002]
[1759264727185,3.08158406,4166.0,4165.9,0.002]
[1759264727988,3.08158406,4166.0,4165.9,2.515]
[1759264729920,2.62558406,4166.0,4165.9,2.515]
[1759264730127,2.40038406,4166.0,4165.9,3.1919]
[1759264730282,2.40038406,4166.0,4165.9,2.7416]
[1759264730482,2.40038406,4166.0,4165.9,3.1919]
[1759264737920,2.40038406,4166.0,4165.9,3.51129]
[1759264739128,2.40038406,4166.0,4165.9,3.1919]
[1759264740787,2.40038406,4166.0,4165.9,0.002]
[1759264740992,2.40038406,4166.0,4165.9,3.4099]
[1759264741194,2.40038406,4166.0,4165.9,3.92728251]
[1759264741394,2.40038406,4166.0,4165.9,3.4099]
[1759264741613,2.40038406,4166.0,4165.9,3.92735259]
[1759264741817,2.40038406,4166.0,4165.9,3.25045807]
[1759264742118,2.40038406,4166.0,4165.9,3.92735807]
[1759264743041,2.40038406,4166.0,4165.9,3.92745744]
[1759264743542,0.001,4166.0,4165.9,3.92745744]
[1759264743748,0.001,4166.0,4165.9,4.59400759]
[1759264744759,2.40138406,4166.0,4165.9,4.59400759]
[1759264745126,0.001,4166.0,4165.9,4.59400759]
[1759264746320,2.40138406,4166.0,4165.9,4.59400759]
[1759264747115,2.40138406,4166.0,4165.9,3.25055744]
[1759264747446,2.40138406,4166.0,4165.9,5.74655744]
[1759264747758,2.40238406,4166.0,4165.9,5.74655744]
[1759264748646,2.40238406,4166.0,4165.9,0.51955744]
[1759264748851,2.40238406,4166.0,4165.9,2.733]
[1759264749269,2.62758406,4166.0,4165.9,0.002]
[1759264749570,3.08358406,4166.0,4165.9,2.733]
[1759264751725,2.62758406,4166.0,4165.9,2.733]
[1759264752064,3.05598406,4166.0,4165.9,0.002]
[1759264752265,3.05598406,4166.0,4165.9,2.733]
[1759264752467,3.15210613,4166.0,4165.9,2.733]
[1759264754464,3.15210613,4166.0,4165.9,0.002]
[1759264754773,3.15210613,4166.0,4165.9,2.733]
[1759264760857,2.72370613,4166.0,4165.9,2.733]
[1759264761569,3.17460613,4166.0,4165.9,2.733]
[1759264762838,2.72370613,4166.0,4165.9,2.733]
[1759264765142,3.17460613,4166.0,4165.9,2.733]
[1759264766177,2.49850613,4166.0,4165.9,2.9719]
[1759264766382,2.72930613,4166.0,4165.9,2.733]
[1759264768157,2.49850613,4166.0,4165.9,2.733]
[1759264769201,2.72930613,4166.0,4165.9,2.733]
[1759264769496,2.52238406,4166.0,4165.9,3.4026]
[1759264770280,2.52238406,4166.0,4165.9,2.733]
[1759264771193,2.52238406,4166.0,4165.9,2.9719]
[1759264771361,2.52238406,4166.0,4165.9,3.4026]
[1759264779528,2.52238406,4166.0,4165.9,3.92064833]
[1759264782330,0.122,4166.0,4165.9,3.92064833]
[1759264782532,2.52238406,4166.0,4165.9,3.92064833]
[1759264784430,0.122,4166.0,4165.9,3.92064833]
[1759264785637,0.122,4166.0,4165.9,4.31531378]
[1759264785638,0.002,4166.0,4165.9,4.31531378]
[1759264785801,0.002,4166.0,4165.9,4.96226058]
[1759264786002,0.002,4166.0,4165.9,6.71575546]
[1759264786202,0.002,4166.0,4165.9,6.81031378]
[1759264786428,0.002,4166.0,4165.9,7.45681081]
[1759264786809,0.002,4166.0,4165.9,9.85725249]
[1759264787042,0.002,4166.0,4165.9,9.21075546]
[1759264787404,0.002,4166.0,4165.9,9.85702698]
[1759264788305,0.002,4166.0,4165.9,9.21075546]
[1759264789406,0.002,4166.0,4165.9,9.85662473]
[1759264790214,0.002,4166.0,4165.9,9.21075546]
[1759264790536,0.002,4166.0,4165.9,12.40275546]
[1759264790737,0.002,4166.0,4165.9,13.63339122]
[1759264791313,0.002,4166.0,4165.9,12.77435172]
[1759264791720,0.002,4166.0,4165.9,13.10525612]
[1759264794157,0.001,4166.0,4165.9,13.10525612]
[1759264794315,0.001,4166.0,4165.9,13.58841731]
[1759264795142,0.001,4166.0,4165.9,13.82861731]
[1759264795615,0.001,4166.0,4165.9,8.03151291]
[1759264795816,0.001,4166.0,4165.9,13.74468898]
[1759264798417,0.001,4166.0,4165.9,14.23628524]
[1759264799641,0.001,4166.0,4165.9,13.37651291]
[1759264800364,0.001,4166.0,4165.9,31.28405555]
[1759264801448,0.001,4166.0,4165.9,31.37443955]
[1759264801756,0.001,4166.2,4166.1,5.82252644]
[1759264801917,0.001,4166.2,4166.1,32.02022886]
[1759264802117,0.001,4166.2,4166.1,32.70422886]
[1759264802552,0.001,4166.2,4166.1,30.30247586]
[1759264805219,0.001,4166.5,4166.1,30.30247586]
[1759264805448,0.001,4166.5,4166.4,5.5921536]
[1759264805653,0.001,4166.7,4166.6,3.192]
[1759264805857,0.001,4166.7,4166.6,31.66223999]
[1759264806154,0.001,4166.7,4166.6,34.74627839]
[1759264806360,0.001,4166.7,4166.6,30.56203782]
[1759264806669,0.001,4166.7,4166.6,17.62081342]
[1759264806857,0.001,4166.7,4166.6,19.86263491]
[1759264807019,0.001,4166.9,4166.8,5.5919232]
[1759264807220,0.001,4166.9,4166.8,29.69416579]
[1759264807454,0.001,4166.9,4166.8,18.74503979]
[1759264807661,0.001,4166.9,4166.8,19.07594419]
[1759264807831,0.001,4166.9,4166.8,22.7615003]
[1759264808027,0.001,4166.9,4166.8,33.69745762]
[1759264808268,0.001,4166.9,4166.8,23.59753862]
[1759264808468,0.011,4166.9,4166.8,24.88552023]
[1759264808958,0.011,4166.9,4166.8,21.24190723]
[1759264809123,0.011,4166.9,4166.8,21.36290723]
[1759264809751,0.001,4167.4,4167.0,5.59180801]
[1759264809959,0.001,4167.4,4167.0,20.41848701]
[1759264810151,0.001,4167.4,4167.0,21.10248701]
[1759264810558,0.001,4167.4,4167.0,20.88778701]
[1759264810762,0.001,4167.4,4167.0,13.57860101]
[1759264811866,0.001,4167.4,4167.0,13.12650101]
[1759264812158,0.2502,4167.4,4167.0,12.89460101]
[1759264812658,0.2502,4167.4,4167.0,15.61460101]
[1759264813081,0.2502,4167.4,4167.0,18.88502301]
[1759264813489,0.2502,4167.4,4167.0,15.61460101]
[1759264813694,0.001,4167.4,4167.0,15.10136243]
[1759264814055,0.001,4167.4,4167.0,37.84470743]
[1759264814253,0.001,4167.4,4167.0,39.97834643]
[1759264814451,0.001,4167.4,4167.3,5.59163525]
[1759264814652,0.001,4167.4,4167.3,27.06967767]
[1759264814957,0.001,4167.4,4167.3,22.12581908]
[1759264815175,0.001,4167.4,4167.3,22.88895508]
[1759264815355,0.001,4167.4,4167.3,21.86781908]
[1759264815682,0.001,4167.4,4167.3,22.19165308]
[1759264815882,0.001,4167.4,4167.3,23.13774908]
[1759264816184,0.001,4167.4,4167.3,22.19165308]
[1759264816778,0.001,4167.4,4167.3,23.56234908]
[1759264816976,0.001,4167.4,4167.3,22.53356708]
[1759264817179,0.001,4167.4,4167.3,23.95674708]
[1759264817480,0.001,4167.8,4167.7,3.19140494]
[1759264817782,0.001,4167.8,4167.7,30.297007]
[1759264817968,0.001,4167.8,4167.7,12.29515496]
[1759264818286,0.001,4167.8,4167.7,38.00447633]
[1759264818481,0.001,4167.8,4167.7,38.32225933]
[1759264818881,0.001,4167.8,4167.7,36.51235933]
[1759264819184,0.001,4167.8,4167.7,37.52396879]
[1759264819384,0.001,4167.8,4167.7,35.22405996]
[1759264819989,0.001,4167.8,4167.7,20.87550396]
[1759264820194,0.001,4167.8,4167.7,14.22135496]
[1759264820356,0.001,4167.8,4167.7,16.82692996]
[1759264820570,0.001,4167.8,4167.7,17.27422996]
[1759264821095,0.001,4167.8,4167.7,18.07843796]
[1759264821289,0.001,4167.8,4167.7,14.91015496]
[1759264821597,0.001,4167.8,4167.7,17.17131096]
[1759264822200,0.001,4167.8,4167.7,14.91015496]
[1759264822974,0.001,4167.8,4167.7,9.68715496]
[1759264823173,0.001,4167.8,4167.7,11.82204953]
[1759264823604,0.001,4167.8,4167.7,13.10917294]
[1759264824503,0.001,4167.8,4167.7,11.82204953]
[1759264825304,0.001,4167.8,4167.7,12.06224953]
[1759264825508,0.001,4167.8,4167.7,12.39315173]
[1759264826004,0.001,4167.8,4167.7,13.95090048]
[1759264826305,0.001,4167.8,4167.7,14.19240048]
[1759264826476,0.001,4167.8,4167.7,14.63970048]
[1759264827200,0.001,4167.8,4167.7,13.95090048]
[1759264829402,0.001,4167.8,4167.7,14.19240048]
[1759264829609,0.001,4167.8,4167.7,14.63970048]
[1759264830395,0.001,4167.8,4167.7,8.72990048]
[1759264830609,0.7166,4167.8,4167.7,11.45045327]
[1759264831111,0.7166,4167.8,4167.7,5.43745327]
[1759264831311,0.7166,4167.8,4167.7,10.65845327]
[1759264831811,0.7166,4167.8,4167.7,11.45045327]
[1759264834300,0.7166,4167.8,4167.7,11.82204953]
[1759264834612,0.2468,4167.8,4167.7,9.42204953]
[1759264834814,0.2468,4167.8,4167.7,13.17472312]
[1759264834978,0.001,4167.8,4167.7,13.17472312]
[1759264835184,0.001,4167.9,4167.8,6.20314363]
[1759264835414,0.001,4167.9,4167.8,6.96269196]
[1759264836421,0.001,4167.9,4167.8,7.40999196]
[1759264836736,0.001,4167.9,4167.8,9.05655786]
[1759264836925,0.001,4167.9,4167.8,9.50385786]
[1759264837745,0.001,4167.9,4167.8,9.05655786]
[1759264838032,0.001,4167.9,4167.8,9.50385786]
[1759264838525,0.001,4167.9,4167.8,11.68446586]
[1759264838824,0.001,4167.9,4167.8,36.77791231]
[1759264839127,0.001,4167.9,4167.8,36.15031631]
[1759264839527,0.001,4167.9,4167.8,23.62119731]
[1759264839694,0.001,4167.9,4167.8,20.20030631]
[1759264839899,0.001,4167.9,4167.8,20.65705631]
[1759264840214,0.001,4167.9,4167.8,15.73922411]
[1759264840420,0.001,4167.9,4167.8,14.03605786]
[1759264840923,0.2468,4167.9,4167.8,8.81505786]
[1759264841115,0.001,4167.9,4167.8,14.03605786]
[1759264841328,0.001,4167.9,4167.8,14.28145786]
[1759264841695,0.001,4167.9,4167.8,14.03605786]
[1759264841920,0.2323,4167.9,4167.8,1.12984459]
[1759264842107,3.09578981,4167.9,4167.8,0.00924833]
[1759264842318,0.6965,4167.9,4167.6,0.002]
[1759264842497,2.39940494,4167.7,4167.6,0.002]
[1759264843111,2.99490494,4167.7,4167.6,0.002]
[1759264843849,2.99490494,4167.7,4167.6,5.229]
[1759264847215,2.99490494,4167.7,4167.6,0.002]
[1759264847416,2.99490494,4167.7,4167.6,5.229]
[1759264851983,3.11490494,4167.7,4167.6,5.229]
[1759264853890,3.11490494,4167.7,4167.6,0.002]
[1759264854373,3.11490494,4167.7,4167.6,2.733]
[1759264855069,3.83542919,4167.7,4167.6,2.733]
[1759264856288,3.47122919,4167.7,4167.6,2.733]
[1759264856578,2.75070494,4167.7,4167.6,2.733]
[1759264857678,0.12,4167.7,4167.6,2.733]
[1759264858195,2.51940494,4167.7,4167.6,2.733]
[1759264858702,0.3513,4167.7,4167.6,2.733]
[1759264858996,2.75070494,4167.7,4167.6,2.733]
[1759264859497,2.51940494,4167.7,4167.6,2.733]
[1759264860207,0.12,4167.7,4167.6,2.733]
[1759264860520,2.51940494,4167.7,4167.6,2.733]
[1759264861587,0.12,4167.7,4167.6,2.733]
[1759264862207,0.12,4167.7,4167.6,3.188]
[1759264862382,2.51940494,4167.7,4167.6,2.733]
[1759264863281,2.75070494,4167.7,4167.6,2.733]
[1759264864501,0.3513,4167.7,4167.6,2.733]
[1759264864873,2.75070494,4167.7,4167.6,2.733]
[1759264865068,2.51940494,4167.7,4167.6,2.733]
[1759264865402,0.12,4167.7,4167.6,2.733]
[1759264870418,0.12,4167.7,4167.6,3.4334]
[1759264870712,0.12,4167.7,4167.6,3.188]
[1759264871265,0.12,4167.7,4167.6,3.4218]
[1759264871897,0.12,4167.7,4167.6,3.188]
[1759264873393,0.12,4167.7,4167.6,2.733]
[1759264874525,0.001,4167.8,4167.7,2.39940494]
[1759264874693,0.001,4167.8,4167.7,5.46830087]
[1759264875032,0.001,4167.8,4167.7,5.48720494]
[1759264875918,0.001,4167.8,4167.7,3.0878]
[1759264876123,0.001,4167.8,4167.7,5.48720494]
[1759264876328,0.001,4167.8,4167.7,6.68833779]
[1759264877323,0.001,4167.8,4167.7,7.33274261]
[1759264877529,0.001,4167.8,4167.7,4.93333767]
[1759264878024,0.001,4167.8,4167.7,7.33274261]
[1759264878226,0.001,4167.8,4167.7,4.93333767]
[1759264878595,0.001,4167.8,4167.7,7.33274261]
[1759264882737,0.001,4167.8,4167.7,6.68833779]
[1759264890365,0.001,4167.8,4167.7,4.28893285]
[1759264890525,0.001,4167.8,4167.7,2.4]
[1759264890724,0.001,4167.8,4167.7,2.495]
[1759264890725,2.99124737,4167.8,4167.7,2.495]
[1759264891024,2.99124737,4167.8,4167.7,5.222]
[1759264891766,0.5919,4167.8,4167.7,5.222]
[1759264891945,2.99124737,4167.8,4167.7,5.222]
[1759264892136,0.5919,4167.8,4167.7,5.222]
[1759264892457,2.99124737,4167.8,4167.7,5.222]
[1759264892964,2.39940494,4167.7,4167.6,0.002]
[1759264893129,2.76360494,4167.7,4167.6,5.224]
[1759264893445,2.99030494,4167.7,4167.6,0.002]
[1759264893645,0.5909,4167.7,4167.6,5.225]
[1759264894242,2.99030494,4167.7,4167.6,5.225]
[1759264894828,0.5909,4167.7,4167.6,5.225]
[1759264895029,2.99030494,4167.7,4167.6,5.225]
[1759264895642,0.5909,4167.7,4167.6,5.225]
[1759264896166,0.2267,4167.7,4167.6,5.225]
[1759264897181,2.62610494,4167.7,4167.6,5.225]